[Event "Late-Titled-Tuesday-Blitz-September-19-2023"]
[Site "Chess.com"]
[Date "2023.09.19"]
[Round "5"]
[White "Korchmar_Vasiliy"]
[Black "KamlaPasand"]
[Result "0-1"]
[WhiteElo "2714"]
[BlackElo "2460"]
[TimeControl "180+1"]
[EndTime "14:53:59 PDT"]
[Termination "KamlaPasand won by resignation"]

1. e4 {[%clk 0:03:00.9]} 1... e5 {[%clk 0:02:59.6]} 2. Nf3 {[%clk 0:03:00.9]}
2... Nc6 {[%clk 0:02:59.7]} 3. Bc4 {[%clk 0:03:01.6]} 3... Bc5 {[%clk
0:02:59.5]} 4. c3 {[%clk 0:03:02]} 4... Nf6 {[%clk 0:02:59.9]} 5. d3 {[%clk
0:03:02.6]} 5... O-O {[%clk 0:02:58.9]} 6. Bg5 {[%clk 0:03:02.8]} 6... h6 {[%clk
0:02:55.5]} 7. Bh4 {[%clk 0:03:03.1]} 7... g5 {[%clk 0:02:55.7]} 8. Bg3 {[%clk
0:03:03.3]} 8... d6 {[%clk 0:02:55.2]} 9. Nbd2 {[%clk 0:03:03.6]} 9... a6 {[%clk
0:02:55.1]} 10. a4 {[%clk 0:03:00.8]} 10... Ba7 {[%clk 0:02:53.7]} 11. O-O
{[%clk 0:02:59.5]} 11... Ne7 {[%clk 0:02:54]} 12. d4 {[%clk 0:02:51]} 12... exd4
{[%clk 0:02:53.6]} 13. Nxd4 {[%clk 0:02:49.3]} 13... Ng6 {[%clk 0:02:50.2]} 14.
Nf5 {[%clk 0:02:39.5]} 14... Kh7 {[%clk 0:02:48.5]} 15. h4 {[%clk 0:02:33.3]}
15... d5 {[%clk 0:02:47.4]} 16. hxg5 {[%clk 0:02:27.1]} 16... hxg5 {[%clk
0:02:45.7]} 17. Bxd5 {[%clk 0:02:12.5]} 17... Nxd5 {[%clk 0:02:38]} 18. Qh5+
{[%clk 0:02:12.2]} 18... Kg8 {[%clk 0:02:38.5]} 19. Nh6+ {[%clk 0:01:36.4]}
19... Kg7 {[%clk 0:02:38.2]} 20. exd5 {[%clk 0:01:37.1]} 20... Rh8 {[%clk
0:02:33.4]} 21. Nxf7 {[%clk 0:01:25.3]} 21... Kxf7 {[%clk 0:02:30.7]} 22. Qf3+
{[%clk 0:01:24.7]} 22... Kg7 {[%clk 0:02:27.7]} 23. Rfe1 {[%clk 0:01:21.7]}
23... g4 {[%clk 0:02:24.3]} 24. Qd3 {[%clk 0:01:14.2]} 24... Qg5 {[%clk
0:02:21.7]} 25. Qc4 {[%clk 0:00:36.7]} 25... Bd7 {[%clk 0:02:01.9]} 26. Qxc7
{[%clk 0:00:35.2]} 26... Rad8 {[%clk 0:02:02.5]} 27. Nf1 {[%clk 0:00:19.1]}
27... Qh5 {[%clk 0:01:48.9]} 28. Nh2 {[%clk 0:00:19.3]} 28... Bb8 {[%clk
0:01:46.8]} 29. d6 {[%clk 0:00:03.4]} 29... Bxc7 {[%clk 0:01:43.4]} 30. dxc7
{[%clk 0:00:04.3]} 30... Rc8 {[%clk 0:01:42.7]} 31. Rad1 {[%clk 0:00:04.9]}
31... Bc6 {[%clk 0:01:41.6]} 32. b4 {[%clk 0:00:03.3]} 32... Rhe8 {[%clk
0:01:34.1]} 33. c4 {[%clk 0:00:03.2]} 33... Rxe1+ {[%clk 0:01:33.9]} 34. Rxe1
{[%clk 0:00:03.6]} 34... Nh4 {[%clk 0:01:29.9]} 35. b5 {[%clk 0:00:02.9]} 35...
axb5 {[%clk 0:01:28.1]} 36. axb5 {[%clk 0:00:03.3]} 36... Nf5 {[%clk 0:01:23.3]}
37. Be5+ {[%clk 0:00:01.7]} 37... Kf7 {[%clk 0:01:21.3]} 38. bxc6 {[%clk
0:00:02.6]} 38... bxc6 {[%clk 0:01:21.9]} 39. Nf1 {[%clk 0:00:02.2]} 39... Qh6
{[%clk 0:01:16.8]} 40. Ng3 {[%clk 0:00:01.2]} 40... Nxg3 {[%clk 0:01:14.7]} 41.
Bxg3 {[%clk 0:00:02.1]} 41... Qf6 {[%clk 0:01:12.6]} 42. Rd1 {[%clk 0:00:02.3]}
42... Qe7 {[%clk 0:01:11.2]} 43. Rd4 {[%clk 0:00:01.5]} 43... Qe1+ {[%clk
0:01:10.7]} 44. Kh2 {[%clk 0:00:01.5]} 44... Rh8+ {[%clk 0:01:11.2]} 45. Bh4
{[%clk 0:00:01.6]} 45... Rxh4+ {[%clk 0:01:11.9]} 46. Kg3 {[%clk 0:00:02.3]}
46... Rh8 {[%clk 0:01:11]} 47. Rd7+ {[%clk 0:00:02.5]} 47... Ke6 {[%clk
0:01:10.4]} 48. Rd8 {[%clk 0:00:03.2]} 48... Qe5+ {[%clk 0:01:09.7]} 49. Kxg4
{[%clk 0:00:03]} 49... Qxc7 {[%clk 0:01:06.4]} 50. Rxh8 {[%clk 0:00:03.2]} 50...
Qg7+ {[%clk 0:01:07.3]} 0-1

[Event "Late-Titled-Tuesday-Blitz-September-19-2023"]
[Site "Chess.com"]
[Date "2023.09.19"]
[Round "5"]
[White "protectiago"]
[Black "Quattroporte300"]
[Result "0-1"]
[WhiteElo "2083"]
[BlackElo "2392"]
[TimeControl "180+1"]
[EndTime "14:54:00 PDT"]
[Termination "Quattroporte300 won on time"]

1. d4 {[%clk 0:03:00.9]} 1... d5 {[%clk 0:02:59.1]} 2. c4 {[%clk 0:03:01]} 2...
dxc4 {[%clk 0:02:58.7]} 3. Nf3 {[%clk 0:03:00]} 3... Nf6 {[%clk 0:02:58]} 4. g3
{[%clk 0:02:58.6]} 4... c5 {[%clk 0:02:51]} 5. Bg2 {[%clk 0:02:56.3]} 5... Nc6
{[%clk 0:02:51.3]} 6. O-O {[%clk 0:02:53.3]} 6... cxd4 {[%clk 0:02:50.6]} 7. Qa4
{[%clk 0:02:53.2]} 7... Be6 {[%clk 0:02:44.4]} 8. Nxd4 {[%clk 0:02:51.8]} 8...
Qxd4 {[%clk 0:02:39.3]} 9. Bxc6+ {[%clk 0:02:50.9]} 9... Bd7 {[%clk 0:02:38.6]}
10. Bxd7+ {[%clk 0:02:49.5]} 10... Qxd7 {[%clk 0:02:32.6]} 11. Qxc4 {[%clk
0:02:47.2]} 11... Rc8 {[%clk 0:02:33.1]} 12. Qb3 {[%clk 0:02:44]} 12... e5
{[%clk 0:02:28.3]} 13. Nc3 {[%clk 0:02:36.8]} 13... Bc5 {[%clk 0:02:23.5]} 14.
Rd1 {[%clk 0:02:30.5]} 14... Qf5 {[%clk 0:02:09.3]} 15. Qb5+ {[%clk 0:02:14.1]}
15... Rc6 {[%clk 0:02:08.2]} 16. e3 {[%clk 0:01:18.7]} 16... O-O {[%clk
0:02:06.9]} 17. Qxb7 {[%clk 0:01:17.7]} 17... Rfc8 {[%clk 0:01:44.4]} 18. Nd5
{[%clk 0:00:54.7]} 18... Ng4 {[%clk 0:01:21.7]} 19. Rf1 {[%clk 0:00:42.7]} 19...
h5 {[%clk 0:00:47.3]} 20. b4 {[%clk 0:00:39.9]} 20... Bf8 {[%clk 0:00:45.8]} 21.
Bd2 {[%clk 0:00:18.8]} 21... Rc2 {[%clk 0:00:42.3]} 22. Be1 {[%clk 0:00:18.2]}
22... h4 {[%clk 0:00:42]} 23. Rd1 {[%clk 0:00:16]} 23... hxg3 {[%clk 0:00:37.6]}
24. fxg3 {[%clk 0:00:16]} 24... Qg6 {[%clk 0:00:27.5]} 25. Ne7+ {[%clk
0:00:13.2]} 25... Bxe7 {[%clk 0:00:27.4]} 26. Qxe7 {[%clk 0:00:13]} 26... Rxh2
{[%clk 0:00:22.8]} 27. Rd8+ {[%clk 0:00:11.5]} 27... Rxd8 {[%clk 0:00:22.9]} 28.
Qxd8+ {[%clk 0:00:11.5]} 28... Kh7 {[%clk 0:00:23.6]} 29. Qd7 {[%clk 0:00:06.1]}
29... Nxe3 {[%clk 0:00:19.9]} 30. Rxf7 {[%clk 0:00:03.3]} 30... Rg2+ {[%clk
0:00:18.4]} 0-1

[Event "Late-Titled-Tuesday-Blitz-September-19-2023"]
[Site "Chess.com"]
[Date "2023.09.19"]
[Round "5"]
[White "TigrVShlyape"]
[Black "jefferyx"]
[Result "1-0"]
[WhiteElo "2978"]
[BlackElo "2994"]
[TimeControl "180+1"]
[EndTime "14:54:01 PDT"]
[Termination "TigrVShlyape won by resignation"]

1. e4 {[%clk 0:03:00.9]} 1... c5 {[%clk 0:02:55.5]} 2. Nf3 {[%clk 0:03:01]} 2...
e6 {[%clk 0:02:54.5]} 3. d4 {[%clk 0:02:56.9]} 3... cxd4 {[%clk 0:02:55.4]} 4.
Nxd4 {[%clk 0:02:56.9]} 4... Nc6 {[%clk 0:02:55.8]} 5. Nb5 {[%clk 0:02:53.4]}
5... d6 {[%clk 0:02:50.8]} 6. c4 {[%clk 0:02:53.3]} 6... Nf6 {[%clk 0:02:50.3]}
7. N1c3 {[%clk 0:02:53.6]} 7... a6 {[%clk 0:02:41.2]} 8. Nd4 {[%clk 0:02:53.8]}
8... Be7 {[%clk 0:02:41.9]} 9. Be2 {[%clk 0:02:53.4]} 9... O-O {[%clk
0:02:42.5]} 10. O-O {[%clk 0:02:53.7]} 10... d5 {[%clk 0:02:32.3]} 11. exd5
{[%clk 0:02:52.3]} 11... exd5 {[%clk 0:02:33.2]} 12. Nxc6 {[%clk 0:02:45.8]}
12... bxc6 {[%clk 0:02:32.2]} 13. cxd5 {[%clk 0:02:45.6]} 13... Nxd5 {[%clk
0:02:29.6]} 14. Nxd5 {[%clk 0:02:44.6]} 14... cxd5 {[%clk 0:02:29]} 15. Be3
{[%clk 0:02:44.2]} 15... Bf6 {[%clk 0:02:24.1]} 16. Bd4 {[%clk 0:02:43]} 16...
Bf5 {[%clk 0:02:24.4]} 17. Qd2 {[%clk 0:02:33]} 17... Re8 {[%clk 0:02:21.8]} 18.
Rfe1 {[%clk 0:02:07]} 18... a5 {[%clk 0:02:15.3]} 19. Bb5 {[%clk 0:02:00.5]}
19... Rxe1+ {[%clk 0:01:54.3]} 20. Rxe1 {[%clk 0:01:58.4]} 20... Be7 {[%clk
0:01:54.8]} 21. a3 {[%clk 0:01:51.1]} 21... h6 {[%clk 0:01:51]} 22. h3 {[%clk
0:01:46.1]} 22... Be6 {[%clk 0:01:39.5]} 23. Qf4 {[%clk 0:01:31.5]} 23... Qb8
{[%clk 0:01:35.9]} 24. Qxb8+ {[%clk 0:01:25.3]} 24... Rxb8 {[%clk 0:01:36.8]}
25. Bd7 {[%clk 0:01:19.3]} 25... Bc5 {[%clk 0:01:17.4]} 26. Bxc5 {[%clk
0:01:17.5]} 26... Bxd7 {[%clk 0:01:17.1]} 27. Re7 {[%clk 0:01:16.6]} 27... Bb5
{[%clk 0:01:13.2]} 28. b4 {[%clk 0:01:14.4]} 28... axb4 {[%clk 0:01:14.1]} 29.
axb4 {[%clk 0:01:14]} 29... f6 {[%clk 0:01:10]} 30. f3 {[%clk 0:01:13.3]} 30...
h5 {[%clk 0:01:07.2]} 31. h4 {[%clk 0:01:12]} 31... Ra8 {[%clk 0:01:05.7]} 32.
Ra7 {[%clk 0:00:58.8]} 32... Rxa7 {[%clk 0:01:05.8]} 33. Bxa7 {[%clk 0:00:59.1]}
33... Kf7 {[%clk 0:01:03.7]} 34. Kf2 {[%clk 0:00:59.2]} 34... Ke6 {[%clk
0:01:02.8]} 35. Ke3 {[%clk 0:00:58.6]} 35... Kf5 {[%clk 0:00:57.9]} 36. Bd4
{[%clk 0:00:54.1]} 36... g5 {[%clk 0:00:56.2]} 37. g3 {[%clk 0:00:53.2]} 37...
Be8 {[%clk 0:00:42.7]} 38. Bc5 {[%clk 0:00:51.7]} 38... Bc6 {[%clk 0:00:37.2]}
39. Bb6 {[%clk 0:00:50.7]} 39... gxh4 {[%clk 0:00:30.9]} 40. gxh4 {[%clk
0:00:50.4]} 40... Bb5 {[%clk 0:00:31.8]} 41. Bc7 {[%clk 0:00:50.1]} 41... Bc6
{[%clk 0:00:19.3]} 42. Kd4 {[%clk 0:00:48.5]} 42... Bb5 {[%clk 0:00:14.2]} 43.
Kxd5 {[%clk 0:00:47.4]} 43... Be2 {[%clk 0:00:13.9]} 44. f4 {[%clk 0:00:47.7]}
44... Kg4 {[%clk 0:00:08]} 45. Ke6 {[%clk 0:00:47.2]} 45... f5 {[%clk
0:00:04.6]} 46. Ke5 {[%clk 0:00:45.8]} 46... Bd3 {[%clk 0:00:04]} 47. Bd8 {[%clk
0:00:45.6]} 47... Be2 {[%clk 0:00:03.4]} 48. Bg5 {[%clk 0:00:45.4]} 1-0

[Event "Late-Titled-Tuesday-Blitz-September-19-2023"]
[Site "Chess.com"]
[Date "2023.09.19"]
[Round "5"]
[White "IMSlavin"]
[Black "WelshTiger"]
[Result "1-0"]
[WhiteElo "2297"]
[BlackElo "2378"]
[TimeControl "180+1"]
[EndTime "14:54:01 PDT"]
[Termination "IMSlavin won on time"]

1. e4 {[%clk 0:02:59.7]} 1... c5 {[%clk 0:02:58]} 2. g3 {[%clk 0:02:59.1]} 2...
g6 {[%clk 0:02:57.6]} 3. Bg2 {[%clk 0:02:58.7]} 3... Bg7 {[%clk 0:02:57.8]} 4.
Ne2 {[%clk 0:02:58.8]} 4... Nc6 {[%clk 0:02:58.1]} 5. O-O {[%clk 0:02:59.1]}
5... e6 {[%clk 0:02:52.4]} 6. Nbc3 {[%clk 0:02:58.9]} 6... Nge7 {[%clk
0:02:51.7]} 7. a3 {[%clk 0:02:59.6]} 7... a5 {[%clk 0:02:50.9]} 8. Nb5 {[%clk
0:02:57.2]} 8... d6 {[%clk 0:02:43.3]} 9. c4 {[%clk 0:02:55.9]} 9... O-O {[%clk
0:02:39.1]} 10. d3 {[%clk 0:02:55.6]} 10... Nd4 {[%clk 0:02:34.8]} 11. Nexd4
{[%clk 0:02:50.3]} 11... cxd4 {[%clk 0:02:34.5]} 12. Bf4 {[%clk 0:02:38.4]}
12... e5 {[%clk 0:02:33.7]} 13. Bd2 {[%clk 0:02:38.1]} 13... f5 {[%clk
0:02:20.1]} 14. f4 {[%clk 0:02:35.6]} 14... fxe4 {[%clk 0:02:20.2]} 15. Bxe4
{[%clk 0:02:33.2]} 15... d5 {[%clk 0:02:13.1]} 16. cxd5 {[%clk 0:02:00.2]} 16...
Bd7 {[%clk 0:02:05.3]} 17. Nd6 {[%clk 0:01:45.4]} 17... Bh3 {[%clk 0:01:44.5]}
18. Nc4 {[%clk 0:01:40.2]} 18... Bxf1 {[%clk 0:01:43.8]} 19. Qxf1 {[%clk
0:01:39.6]} 19... Nxd5 {[%clk 0:01:38]} 20. Qg2 {[%clk 0:01:37.4]} 20... Ne3
{[%clk 0:01:33.5]} 21. Nxe3 {[%clk 0:01:34.5]} 21... dxe3 {[%clk 0:01:33.6]} 22.
Bxe3 {[%clk 0:01:34.6]} 22... exf4 {[%clk 0:01:33.7]} 23. Bxf4 {[%clk
0:01:34.5]} 23... Bxb2 {[%clk 0:01:30.3]} 24. Qxb2 {[%clk 0:01:33.3]} 24... Rc8
{[%clk 0:00:38.5]} 25. Qb3+ {[%clk 0:01:24.1]} 25... Kg7 {[%clk 0:00:31.3]} 26.
Be5+ {[%clk 0:01:22.3]} 26... Kh6 {[%clk 0:00:29.8]} 27. Qe6 {[%clk 0:01:10.9]}
27... Qg5 {[%clk 0:00:25.6]} 28. Bf4 {[%clk 0:01:00.5]} 28... Rxf4 {[%clk
0:00:24]} 29. Qxc8 {[%clk 0:01:00]} 29... Rxe4 {[%clk 0:00:21.6]} 30. Qh3+
{[%clk 0:00:45.6]} 30... Kg7 {[%clk 0:00:21.3]} 31. dxe4 {[%clk 0:00:39.1]}
31... Qe3+ {[%clk 0:00:21.3]} 32. Kh1 {[%clk 0:00:36.8]} 32... Qd4 {[%clk
0:00:10.3]} 33. Re1 {[%clk 0:00:32.8]} 33... Qc3 {[%clk 0:00:07.3]} 34. Qf1
{[%clk 0:00:30.9]} 34... Qxa3 {[%clk 0:00:05.1]} 35. e5 {[%clk 0:00:30.5]} 35...
Qe7 {[%clk 0:00:04.9]} 36. e6 {[%clk 0:00:28.8]} 36... a4 {[%clk 0:00:03.4]} 37.
Qc4 {[%clk 0:00:26.6]} 1-0

[Event "Late-Titled-Tuesday-Blitz-September-19-2023"]
[Site "Chess.com"]
[Date "2023.09.19"]
[Round "5"]
[White "tomobeast"]
[Black "midedu"]
[Result "0-1"]
[WhiteElo "2233"]
[BlackElo "2041"]
[TimeControl "180+1"]
[EndTime "14:54:02 PDT"]
[Termination "midedu won on time"]

1. e4 {[%clk 0:02:00.6]} 1... c5 {[%clk 0:02:59.2]} 2. Nf3 {[%clk 0:02:00]} 2...
Nc6 {[%clk 0:02:58.5]} 3. d4 {[%clk 0:01:59.2]} 3... cxd4 {[%clk 0:02:58.3]} 4.
Nxd4 {[%clk 0:02:00.1]} 4... Nf6 {[%clk 0:02:57.8]} 5. Nc3 {[%clk 0:01:59.5]}
5... Qb6 {[%clk 0:02:56.9]} 6. Nb3 {[%clk 0:01:50.7]} 6... e6 {[%clk 0:02:56.1]}
7. Qe2 {[%clk 0:01:48.8]} 7... a6 {[%clk 0:02:54.2]} 8. e5 {[%clk 0:01:31.5]}
8... Ng8 {[%clk 0:02:52.9]} 9. Bd2 {[%clk 0:01:26.3]} 9... d5 {[%clk 0:02:41.5]}
10. exd6 {[%clk 0:01:26.3]} 10... Bxd6 {[%clk 0:02:41.1]} 11. O-O-O {[%clk
0:01:27.2]} 11... Be7 {[%clk 0:02:39.1]} 12. g4 {[%clk 0:01:15.8]} 12... Nf6
{[%clk 0:02:35.3]} 13. Bg2 {[%clk 0:01:06.6]} 13... Qc7 {[%clk 0:02:24.7]} 14.
Rhe1 {[%clk 0:01:01.7]} 14... Qxh2 {[%clk 0:01:56.8]} 15. Bxc6+ {[%clk
0:00:48.6]} 15... bxc6 {[%clk 0:01:56.2]} 16. g5 {[%clk 0:00:48.5]} 16... Nd5
{[%clk 0:01:53.4]} 17. Qc4 {[%clk 0:00:41.8]} 17... Bd7 {[%clk 0:01:29.8]} 18.
Nc5 {[%clk 0:00:37.2]} 18... Qc7 {[%clk 0:00:47]} 19. N3e4 {[%clk 0:00:15.4]}
19... Bc8 {[%clk 0:00:37.6]} 20. Rh1 {[%clk 0:00:10.9]} 20... Rb8 {[%clk
0:00:23.1]} 21. Rh5 {[%clk 0:00:09.4]} 21... g6 {[%clk 0:00:17.9]} 22. Rh6
{[%clk 0:00:08.3]} 22... Bf8 {[%clk 0:00:15.3]} 23. Rh3 {[%clk 0:00:08.1]} 23...
h5 {[%clk 0:00:14.4]} 24. gxh6 {[%clk 0:00:07.6]} 24... e5 {[%clk 0:00:10.9]}
25. Nc3 {[%clk 0:00:02.5]} 25... Bxh3 {[%clk 0:00:09]} 26. Nxd5 {[%clk
0:00:02.1]} 26... cxd5 {[%clk 0:00:08.9]} 27. Qxd5 {[%clk 0:00:02.6]} 27... Bxc5
{[%clk 0:00:06.7]} 28. Bc3 {[%clk 0:00:02.1]} 28... Be6 {[%clk 0:00:06]} 0-1

[Event "Late-Titled-Tuesday-Blitz-September-19-2023"]
[Site "Chess.com"]
[Date "2023.09.19"]
[Round "5"]
[White "dorpato"]
[Black "WilliamAlfaroCaracas"]
[Result "1-0"]
[WhiteElo "2012"]
[BlackElo "2256"]
[TimeControl "180+1"]
[EndTime "14:54:02 PDT"]
[Termination "dorpato won on time"]

1. e4 {[%clk 0:02:57.2]} 1... e5 {[%clk 0:02:59.2]} 2. Nf3 {[%clk 0:02:54.3]}
2... Nc6 {[%clk 0:02:59.7]} 3. d4 {[%clk 0:02:53.8]} 3... exd4 {[%clk
0:02:59.2]} 4. c3 {[%clk 0:02:54.2]} 4... Qe7 {[%clk 0:02:48.5]} 5. Bd3 {[%clk
0:02:18.1]} 5... d5 {[%clk 0:02:39.9]} 6. O-O {[%clk 0:02:10.2]} 6... dxe4
{[%clk 0:02:39.2]} 7. Bxe4 {[%clk 0:02:04]} 7... Bg4 {[%clk 0:02:29.2]} 8. Bxc6+
{[%clk 0:01:59.4]} 8... bxc6 {[%clk 0:02:25.2]} 9. Re1 {[%clk 0:01:57.4]} 9...
Be6 {[%clk 0:02:25.7]} 10. Nxd4 {[%clk 0:01:55.4]} 10... Qd6 {[%clk 0:02:10.8]}
11. Nxe6 {[%clk 0:01:42.4]} 11... fxe6 {[%clk 0:02:10.7]} 12. Qxd6 {[%clk
0:01:39]} 12... Bxd6 {[%clk 0:02:11.3]} 13. Rxe6+ {[%clk 0:01:38.9]} 13... Kd7
{[%clk 0:02:12]} 14. Re1 {[%clk 0:01:38.1]} 14... Nf6 {[%clk 0:02:11.5]} 15. Bg5
{[%clk 0:01:36.5]} 15... Rhe8 {[%clk 0:02:07.7]} 16. Nd2 {[%clk 0:01:34.3]}
16... Ng4 {[%clk 0:01:59.6]} 17. Nf3 {[%clk 0:01:22.3]} 17... h6 {[%clk
0:01:54.9]} 18. Bh4 {[%clk 0:01:16.2]} 18... Rab8 {[%clk 0:01:41.6]} 19. b3
{[%clk 0:01:12]} 19... Ne5 {[%clk 0:00:53.8]} 20. Nd4 {[%clk 0:00:53.6]} 20...
Nd3 {[%clk 0:00:42.3]} 21. Rxe8 {[%clk 0:00:49]} 21... Rxe8 {[%clk 0:00:41.9]}
22. Kf1 {[%clk 0:00:47]} 22... g5 {[%clk 0:00:28.4]} 23. Bg3 {[%clk 0:00:43.7]}
23... Bxg3 {[%clk 0:00:28.2]} 24. hxg3 {[%clk 0:00:38.8]} 24... Rf8 {[%clk
0:00:24.8]} 25. Nf3 {[%clk 0:00:31.6]} 25... Kc8 {[%clk 0:00:18.9]} 26. Rd1
{[%clk 0:00:29.6]} 26... Nc5 {[%clk 0:00:13.9]} 27. Rd4 {[%clk 0:00:20.4]} 27...
Kb7 {[%clk 0:00:09.3]} 28. Rb4+ {[%clk 0:00:19.5]} 28... Kc8 {[%clk 0:00:08.8]}
29. Rc4 {[%clk 0:00:19.3]} 29... Nd3 {[%clk 0:00:07.6]} 30. Rd4 {[%clk
0:00:18.1]} 30... Nc5 {[%clk 0:00:06.3]} 31. Rc4 {[%clk 0:00:16.2]} 31... Nd3
{[%clk 0:00:06.7]} 32. Ke2 {[%clk 0:00:16.5]} 1-0

[Event "Late-Titled-Tuesday-Blitz-September-19-2023"]
[Site "Chess.com"]
[Date "2023.09.19"]
[Round "5"]
[White "Jospem"]
[Black "AlexOstrovskiy"]
[Result "1-0"]
[WhiteElo "3058"]
[BlackElo "2651"]
[TimeControl "180+1"]
[EndTime "14:54:05 PDT"]
[Termination "Jospem won by resignation"]

1. e4 {[%clk 0:03:00.9]} 1... d5 {[%clk 0:02:39.7]} 2. exd5 {[%clk 0:03:00.6]}
2... Nf6 {[%clk 0:02:39]} 3. Nf3 {[%clk 0:03:00.3]} 3... Bg4 {[%clk 0:02:39.4]}
4. h3 {[%clk 0:02:59.3]} 4... Bxf3 {[%clk 0:02:38.9]} 5. Qxf3 {[%clk 0:02:59.2]}
5... Qxd5 {[%clk 0:02:39.8]} 6. Qxd5 {[%clk 0:02:57.5]} 6... Nxd5 {[%clk
0:02:40.7]} 7. c3 {[%clk 0:02:54.6]} 7... e5 {[%clk 0:02:32.7]} 8. d3 {[%clk
0:02:50.8]} 8... Nc6 {[%clk 0:02:31.9]} 9. Nd2 {[%clk 0:02:51.4]} 9... O-O-O
{[%clk 0:02:27.2]} 10. Nf3 {[%clk 0:02:51.8]} 10... f5 {[%clk 0:02:17.6]} 11.
Be2 {[%clk 0:02:51]} 11... Be7 {[%clk 0:02:12.3]} 12. O-O {[%clk 0:02:50.6]}
12... Rhe8 {[%clk 0:02:10]} 13. Re1 {[%clk 0:02:45.6]} 13... Bf6 {[%clk
0:02:05.4]} 14. Bf1 {[%clk 0:02:41.2]} 14... h6 {[%clk 0:02:01.3]} 15. Bd2
{[%clk 0:02:22.8]} 15... e4 {[%clk 0:01:54.2]} 16. dxe4 {[%clk 0:02:23.7]} 16...
fxe4 {[%clk 0:01:54.8]} 17. Nh2 {[%clk 0:02:24.4]} 17... Ndb4 {[%clk 0:01:51]}
18. Re2 {[%clk 0:02:21.8]} 18... Nd3 {[%clk 0:01:39.8]} 19. Rb1 {[%clk
0:02:13.3]} 19... Nce5 {[%clk 0:01:32.8]} 20. b3 {[%clk 0:01:57.2]} 20... Ng6
{[%clk 0:01:21.8]} 21. Ng4 {[%clk 0:01:35.7]} 21... Ndf4 {[%clk 0:01:10.7]} 22.
Bxf4 {[%clk 0:01:34.6]} 22... Nxf4 {[%clk 0:01:11.6]} 23. Rc2 {[%clk 0:01:21.6]}
23... Be7 {[%clk 0:00:57.9]} 24. b4 {[%clk 0:01:17.4]} 24... h5 {[%clk
0:00:52.8]} 25. Ne3 {[%clk 0:01:17.4]} 25... Bf6 {[%clk 0:00:49.4]} 26. Bc4
{[%clk 0:01:11.7]} 26... Nd3 {[%clk 0:00:44.9]} 27. Rd1 {[%clk 0:00:56.4]} 27...
c6 {[%clk 0:00:42.9]} 28. a3 {[%clk 0:00:54.2]} 28... Ne5 {[%clk 0:00:31.6]} 29.
Re1 {[%clk 0:00:45.1]} 29... Nxc4 {[%clk 0:00:24.5]} 30. Nxc4 {[%clk 0:00:46]}
30... Rd3 {[%clk 0:00:24]} 31. Re3 {[%clk 0:00:46.6]} 31... Kc7 {[%clk
0:00:19.8]} 32. Kf1 {[%clk 0:00:45.8]} 32... b5 {[%clk 0:00:16.9]} 33. Nd2
{[%clk 0:00:45.7]} 33... Rxe3 {[%clk 0:00:05.9]} 34. fxe3 {[%clk 0:00:45.9]}
34... a6 {[%clk 0:00:02.2]} 35. Ke2 {[%clk 0:00:46.3]} 35... Re7 {[%clk
0:00:02.2]} 36. c4 {[%clk 0:00:46.8]} 36... Kd6 {[%clk 0:00:02.9]} 37. Rc1
{[%clk 0:00:46.7]} 37... Kd7 {[%clk 0:00:02.5]} 38. Rd1 {[%clk 0:00:47]} 38...
Kc7 {[%clk 0:00:01.5]} 39. Rc1 {[%clk 0:00:47.6]} 39... Re6 {[%clk 0:00:01.8]}
40. Nb3 {[%clk 0:00:47.8]} 40... Re7 {[%clk 0:00:01.8]} 41. Nc5 {[%clk
0:00:48.1]} 41... Be5 {[%clk 0:00:01.5]} 42. Nxa6+ {[%clk 0:00:46.9]} 42... Kb6
{[%clk 0:00:02.4]} 43. Nc5 {[%clk 0:00:47.5]} 43... bxc4 {[%clk 0:00:03.2]} 44.
Rxc4 {[%clk 0:00:46.6]} 44... Ra7 {[%clk 0:00:04.1]} 45. a4 {[%clk 0:00:46.7]}
45... Bg3 {[%clk 0:00:03.4]} 46. Nxe4 {[%clk 0:00:47]} 46... Be5 {[%clk
0:00:02.4]} 47. a5+ {[%clk 0:00:47.2]} 47... Kb5 {[%clk 0:00:03]} 48. Rc5+
{[%clk 0:00:47.8]} 48... Kxb4 {[%clk 0:00:03.8]} 49. Rxe5 {[%clk 0:00:48.7]} 1-0

[Event "Late-Titled-Tuesday-Blitz-September-19-2023"]
[Site "Chess.com"]
[Date "2023.09.19"]
[Round "5"]
[White "GMBenjaminBok"]
[Black "Rodalquilar"]
[Result "1-0"]
[WhiteElo "2963"]
[BlackElo "2752"]
[TimeControl "180+1"]
[EndTime "14:54:06 PDT"]
[Termination "GMBenjaminBok won by checkmate"]

1. d4 {[%clk 0:03:00.9]} 1... d5 {[%clk 0:03:00]} 2. c4 {[%clk 0:03:00.9]} 2...
e6 {[%clk 0:03:00.5]} 3. Nc3 {[%clk 0:03:00.9]} 3... h6 {[%clk 0:03:01]} 4. Nf3
{[%clk 0:02:58]} 4... Nf6 {[%clk 0:03:01.2]} 5. Bf4 {[%clk 0:02:57.5]} 5... Bd6
{[%clk 0:03:01.2]} 6. Bxd6 {[%clk 0:02:57.3]} 6... Qxd6 {[%clk 0:03:01.4]} 7. e3
{[%clk 0:02:58.2]} 7... O-O {[%clk 0:03:01.5]} 8. Rc1 {[%clk 0:02:58.8]} 8... b6
{[%clk 0:03:02]} 9. cxd5 {[%clk 0:02:58.5]} 9... Nxd5 {[%clk 0:03:02.7]} 10.
Nxd5 {[%clk 0:02:59]} 10... Qxd5 {[%clk 0:03:03.4]} 11. Bc4 {[%clk 0:02:50.1]}
11... Qa5+ {[%clk 0:03:00.5]} 12. Qd2 {[%clk 0:02:48.5]} 12... Qxd2+ {[%clk
0:02:58.6]} 13. Kxd2 {[%clk 0:02:47]} 13... Bb7 {[%clk 0:02:59]} 14. Ke2 {[%clk
0:02:44.9]} 14... Rc8 {[%clk 0:02:42.9]} 15. Rc2 {[%clk 0:02:02.8]} 15... Nd7
{[%clk 0:01:52.4]} 16. Rhc1 {[%clk 0:02:00.4]} 16... Be4 {[%clk 0:01:45.1]} 17.
Rc3 {[%clk 0:01:28.6]} 17... a6 {[%clk 0:01:03.8]} 18. Bd3 {[%clk 0:00:56.9]}
18... Bb7 {[%clk 0:00:48.6]} 19. Rxc7 {[%clk 0:00:55.3]} 19... Bxf3+ {[%clk
0:00:40.8]} 20. Kxf3 {[%clk 0:00:55]} 20... Rd8 {[%clk 0:00:41.7]} 21. Rb7
{[%clk 0:00:53.5]} 21... e5 {[%clk 0:00:32.7]} 22. Rcc7 {[%clk 0:00:50.9]} 22...
Nf8 {[%clk 0:00:19.1]} 23. Rxf7 {[%clk 0:00:45.5]} 23... Ne6 {[%clk 0:00:19.5]}
24. Rfe7 {[%clk 0:00:45.3]} 24... Ng5+ {[%clk 0:00:18]} 25. Kg3 {[%clk
0:00:41.9]} 25... exd4 {[%clk 0:00:18.1]} 26. h4 {[%clk 0:00:39.1]} 26... dxe3
{[%clk 0:00:17.3]} 27. Bc4+ {[%clk 0:00:39.3]} 27... Kh8 {[%clk 0:00:14.2]} 28.
hxg5 {[%clk 0:00:39.6]} 28... Rd4 {[%clk 0:00:10.5]} 29. Bb3 {[%clk 0:00:31]}
29... exf2 {[%clk 0:00:09.1]} 30. Kxf2 {[%clk 0:00:30.4]} 30... Rf8+ {[%clk
0:00:06]} 31. Ke3 {[%clk 0:00:25.3]} 31... Rg4 {[%clk 0:00:04.5]} 32. gxh6
{[%clk 0:00:22.1]} 32... Rg3+ {[%clk 0:00:05]} 33. Ke4 {[%clk 0:00:20.8]} 33...
Rg4+ {[%clk 0:00:05.5]} 34. Ke5 {[%clk 0:00:20.5]} 34... Rg5+ {[%clk 0:00:06]}
35. Kd6 {[%clk 0:00:19.5]} 35... Rf6+ {[%clk 0:00:06.3]} 36. Kc7 {[%clk
0:00:18.6]} 36... gxh6 {[%clk 0:00:05.8]} 37. Rb8+ {[%clk 0:00:16.5]} 37... Rg8
{[%clk 0:00:06.2]} 38. Rxg8# {[%clk 0:00:16.2]} 1-0